[Event "Late-Titled-Tuesday-Blitz-April-23-2024"]
[Site "Chess.com"]
[Date "2024.04.23"]
[Round "3"]
[White "FM_Kappeler"]
[Black "ural58"]
[Result "1/2-1/2"]
[WhiteElo "2284"]
[BlackElo "2557"]
[TimeControl "180+1"]
[EndTime "14:30:49 PDT"]
[Termination "Game drawn - insufficient material"]

1. d4 {[%clk 0:03:00.9]} 1... d5 {[%clk 0:02:33.3]} 2. c4 {[%clk 0:03:00.4]}
2... e5 {[%clk 0:02:33]} 3. dxe5 {[%clk 0:02:59.4]} 3... d4 {[%clk 0:02:33.1]}
4. Nf3 {[%clk 0:02:59.2]} 4... Nc6 {[%clk 0:02:33.1]} 5. a3 {[%clk 0:02:58.8]}
5... g6 {[%clk 0:02:32.2]} 6. Nbd2 {[%clk 0:02:43.1]} 6... Bg7 {[%clk
0:02:29.7]} 7. Nb3 {[%clk 0:02:42.3]} 7... Nxe5 {[%clk 0:02:21.8]} 8. Nfxd4
{[%clk 0:02:22]} 8... Nxc4 {[%clk 0:02:05.9]} 9. e4 {[%clk 0:02:18.8]} 9... Nd6
{[%clk 0:02:04.7]} 10. Bd3 {[%clk 0:01:57.5]} 10... c5 {[%clk 0:01:59.4]} 11.
Nb5 {[%clk 0:01:39.7]} 11... Nxb5 {[%clk 0:01:45.6]} 12. Bxb5+ {[%clk
0:01:39.6]} 12... Bd7 {[%clk 0:01:38.8]} 13. Bxd7+ {[%clk 0:01:38.5]} 13... Qxd7
{[%clk 0:01:39.4]} 14. Qxd7+ {[%clk 0:01:36.8]} 14... Kxd7 {[%clk 0:01:40]} 15.
Nxc5+ {[%clk 0:01:36.2]} 15... Kc6 {[%clk 0:01:39.4]} 16. Nd3 {[%clk 0:01:27.6]}
16... Nf6 {[%clk 0:01:36.5]} 17. f3 {[%clk 0:01:23.2]} 17... Rhd8 {[%clk
0:01:34.9]} 18. Ke2 {[%clk 0:01:21.2]} 18... Rac8 {[%clk 0:01:29]} 19. Bf4
{[%clk 0:01:04.6]} 19... Nh5 {[%clk 0:01:22.6]} 20. Rac1+ {[%clk 0:01:01.3]}
20... Kb5 {[%clk 0:01:20.8]} 21. Be3 {[%clk 0:00:57.4]} 21... f5 {[%clk
0:01:17.9]} 22. b3 {[%clk 0:00:49.3]} 22... b6 {[%clk 0:01:02.2]} 23. Nb4 {[%clk
0:00:40]} 23... a5 {[%clk 0:00:58.1]} 24. Nd5 {[%clk 0:00:38.5]} 24... fxe4
{[%clk 0:00:56.9]} 25. Nc7+ {[%clk 0:00:35.3]} 25... Rxc7 {[%clk 0:00:56]} 26.
Rxc7 {[%clk 0:00:35.2]} 26... exf3+ {[%clk 0:00:54.9]} 27. gxf3 {[%clk
0:00:35.1]} 27... Re8 {[%clk 0:00:51.4]} 28. Kf2 {[%clk 0:00:34]} 28... Be5
{[%clk 0:00:42.2]} 29. Rb7 {[%clk 0:00:32.7]} 29... Re6 {[%clk 0:00:41.4]} 30.
Rd1 {[%clk 0:00:30.9]} 30... Bxh2 {[%clk 0:00:38.4]} 31. Rd8 {[%clk 0:00:17.9]}
31... Bg3+ {[%clk 0:00:37.5]} 32. Ke2 {[%clk 0:00:14.8]} 32... Bf4 {[%clk
0:00:37.2]} 33. Rxb6+ {[%clk 0:00:12.6]} 33... Rxb6 {[%clk 0:00:36.9]} 34. Bxb6
{[%clk 0:00:12.7]} 34... Kxb6 {[%clk 0:00:37.2]} 35. Rh8 {[%clk 0:00:13.1]}
35... Nf6 {[%clk 0:00:36.7]} 36. Rf8 {[%clk 0:00:12.6]} 36... Be5 {[%clk
0:00:34.7]} 37. Rf7 {[%clk 0:00:12.3]} 37... Bb2 {[%clk 0:00:32.4]} 38. Kd3
{[%clk 0:00:11]} 38... h5 {[%clk 0:00:30.1]} 39. Kc2 {[%clk 0:00:10.7]} 39...
Ba1 {[%clk 0:00:29.2]} 40. Kb1 {[%clk 0:00:10.6]} 40... Bd4 {[%clk 0:00:28.7]}
41. Kc2 {[%clk 0:00:09]} 41... h4 {[%clk 0:00:28.7]} 42. Rg7 {[%clk 0:00:08.1]}
42... h3 {[%clk 0:00:23.9]} 43. Rxg6 {[%clk 0:00:08.3]} 43... Kc5 {[%clk
0:00:13.5]} 44. Rh6 {[%clk 0:00:08.4]} 44... Nd5 {[%clk 0:00:12.6]} 45. Rxh3
{[%clk 0:00:08.2]} 45... Be5 {[%clk 0:00:09.7]} 46. Kd3 {[%clk 0:00:07.9]} 46...
Nf4+ {[%clk 0:00:09.4]} 47. Ke4 {[%clk 0:00:08.1]} 47... Nxh3 {[%clk 0:00:09.8]}
48. Kxe5 {[%clk 0:00:08.4]} 48... Nf2 {[%clk 0:00:06.9]} 49. f4 {[%clk
0:00:08.1]} 49... Nd3+ {[%clk 0:00:07.4]} 50. Ke4 {[%clk 0:00:07.7]} 50... Nc1
{[%clk 0:00:07.4]} 51. b4+ {[%clk 0:00:07.7]} 51... axb4 {[%clk 0:00:07.5]} 52.
axb4+ {[%clk 0:00:07.8]} 52... Kd6 {[%clk 0:00:07.7]} 53. f5 {[%clk 0:00:07.6]}
53... Na2 {[%clk 0:00:06.7]} 54. b5 {[%clk 0:00:07.3]} 54... Nc3+ {[%clk
0:00:06.7]} 55. Kf4 {[%clk 0:00:07.4]} 55... Nxb5 {[%clk 0:00:07.4]} 56. Kg5
{[%clk 0:00:07.6]} 56... Ke7 {[%clk 0:00:08]} 57. Kg6 {[%clk 0:00:07.1]} 57...
Kf8 {[%clk 0:00:08.9]} 58. f6 {[%clk 0:00:07.2]} 58... Nd6 {[%clk 0:00:09.5]}
59. f7 {[%clk 0:00:07]} 59... Nxf7 {[%clk 0:00:09.6]} 1/2-1/2

[Event "Late-Titled-Tuesday-Blitz-April-23-2024"]
[Site "Chess.com"]
[Date "2024.04.23"]
[Round "3"]
[White "AsterPhoenix"]
[Black "Licancabur"]
[Result "1-0"]
[WhiteElo "2648"]
[BlackElo "2460"]
[TimeControl "180+1"]
[EndTime "14:30:51 PDT"]
[Termination "AsterPhoenix won on time"]

1. e4 {[%clk 0:03:00.9]} 1... Nf6 {[%clk 0:02:57.8]} 2. d3 {[%clk 0:02:54.6]}
2... d5 {[%clk 0:02:54.7]} 3. Nd2 {[%clk 0:02:54]} 3... e5 {[%clk 0:02:46.2]} 4.
Ngf3 {[%clk 0:02:53.5]} 4... Nc6 {[%clk 0:02:46.2]} 5. Be2 {[%clk 0:02:54.1]}
5... Bc5 {[%clk 0:02:40.8]} 6. c3 {[%clk 0:02:53.9]} 6... O-O {[%clk 0:02:29.9]}
7. b4 {[%clk 0:02:49.6]} 7... Bd6 {[%clk 0:01:43.5]} 8. Bb2 {[%clk 0:02:48.4]}
8... a6 {[%clk 0:01:27.9]} 9. O-O {[%clk 0:02:47.9]} 9... Re8 {[%clk 0:01:27.6]}
10. a4 {[%clk 0:02:45.4]} 10... Bd7 {[%clk 0:01:17.5]} 11. Re1 {[%clk
0:02:41.2]} 11... h6 {[%clk 0:01:14.9]} 12. Bf1 {[%clk 0:02:38.1]} 12... Bg4
{[%clk 0:01:00.4]} 13. h3 {[%clk 0:02:36.9]} 13... Bh5 {[%clk 0:00:59.7]} 14.
Qc2 {[%clk 0:02:33]} 14... Bg6 {[%clk 0:00:58.1]} 15. Nh4 {[%clk 0:02:26.5]}
15... Bh7 {[%clk 0:00:58]} 16. Nf5 {[%clk 0:02:13.7]} 16... Bxf5 {[%clk
0:00:56.7]} 17. exf5 {[%clk 0:02:14.6]} 17... Qd7 {[%clk 0:00:52.7]} 18. b5
{[%clk 0:01:55.4]} 18... Ne7 {[%clk 0:00:45.7]} 19. c4 {[%clk 0:01:31.8]} 19...
Nxf5 {[%clk 0:00:36.7]} 20. c5 {[%clk 0:01:31.8]} 20... Bf8 {[%clk 0:00:36.1]}
21. Bxe5 {[%clk 0:01:24.5]} 21... axb5 {[%clk 0:00:26.5]} 22. Bxf6 {[%clk
0:01:20.8]} 22... Rxe1 {[%clk 0:00:22.3]} 23. Rxe1 {[%clk 0:01:18.7]} 23... gxf6
{[%clk 0:00:22.9]} 24. axb5 {[%clk 0:01:15.9]} 24... Qxb5 {[%clk 0:00:22.8]} 25.
d4 {[%clk 0:01:02.3]} 25... Nxd4 {[%clk 0:00:22.9]} 26. Qc3 {[%clk 0:00:54.8]}
26... Qxc5 {[%clk 0:00:23.1]} 27. Qg3+ {[%clk 0:00:54.3]} 27... Kh8 {[%clk
0:00:22.2]} 28. Qh4 {[%clk 0:00:51.7]} 28... Nf5 {[%clk 0:00:17.9]} 29. Qxf6+
{[%clk 0:00:50.9]} 29... Ng7 {[%clk 0:00:18]} 30. Qxh6+ {[%clk 0:00:50.5]} 30...
Kg8 {[%clk 0:00:17.7]} 31. Bd3 {[%clk 0:00:51]} 31... f5 {[%clk 0:00:16.2]} 32.
Nf3 {[%clk 0:00:48.8]} 32... Qc3 {[%clk 0:00:14]} 33. Bxf5 {[%clk 0:00:37.2]}
33... Nxf5 {[%clk 0:00:11.7]} 34. Qe6+ {[%clk 0:00:37.3]} 34... Kh8 {[%clk
0:00:11]} 35. Qxf5 {[%clk 0:00:37.6]} 35... Bg7 {[%clk 0:00:10.4]} 36. Qh5+
{[%clk 0:00:35.9]} 36... Kg8 {[%clk 0:00:10.6]} 37. Qxd5+ {[%clk 0:00:36]} 37...
Kh8 {[%clk 0:00:11.3]} 38. Qh5+ {[%clk 0:00:36.1]} 38... Kg8 {[%clk 0:00:11.2]}
39. Re8+ {[%clk 0:00:29.3]} 39... Rxe8 {[%clk 0:00:10.8]} 40. Qxe8+ {[%clk
0:00:30.2]} 40... Kh7 {[%clk 0:00:10.7]} 41. Ng5+ {[%clk 0:00:29.3]} 41... Kh6
{[%clk 0:00:11.3]} 42. Nf7+ {[%clk 0:00:16.1]} 42... Kh7 {[%clk 0:00:11.4]} 43.
Qe4+ {[%clk 0:00:14.3]} 43... Kg8 {[%clk 0:00:09.6]} 44. Qe8+ {[%clk 0:00:11.3]}
44... Kh7 {[%clk 0:00:09.9]} 45. g3 {[%clk 0:00:07.8]} 45... Qc6 {[%clk
0:00:07.4]} 46. Ng5+ {[%clk 0:00:04.8]} 46... Kh6 {[%clk 0:00:06.7]} 47. Nf7+
{[%clk 0:00:04.1]} 47... Kh7 {[%clk 0:00:06.8]} 48. Qxc6 {[%clk 0:00:04.2]}
48... bxc6 {[%clk 0:00:06.2]} 49. Nd8 {[%clk 0:00:04.1]} 49... c5 {[%clk
0:00:05.9]} 50. Kf1 {[%clk 0:00:04.2]} 50... c4 {[%clk 0:00:05.8]} 51. Ke2
{[%clk 0:00:03.8]} 51... Kg6 {[%clk 0:00:05.7]} 52. Nc6 {[%clk 0:00:03.6]} 52...
Bf6 {[%clk 0:00:04.3]} 53. Na5 {[%clk 0:00:03.4]} 53... c3 {[%clk 0:00:03.3]}
54. Kd3 {[%clk 0:00:04]} 54... Kf5 {[%clk 0:00:03.6]} 55. f4 {[%clk 0:00:03]}
55... c5 {[%clk 0:00:02.7]} 56. Nc4 {[%clk 0:00:03.7]} 56... Ke6 {[%clk
0:00:02.5]} 57. g4 {[%clk 0:00:03.5]} 57... Kd5 {[%clk 0:00:02.9]} 58. Ne3+
{[%clk 0:00:03.4]} 58... Ke6 {[%clk 0:00:02.7]} 59. g5 {[%clk 0:00:03.6]} 59...
Bd4 {[%clk 0:00:02]} 60. h4 {[%clk 0:00:03.7]} 60... Bxe3 {[%clk 0:00:01.2]} 61.
Kxe3 {[%clk 0:00:04.6]} 61... c4 {[%clk 0:00:01.7]} 62. h5 {[%clk 0:00:03.8]}
62... Kf5 {[%clk 0:00:01]} 63. h6 {[%clk 0:00:04.3]} 63... Kg6 {[%clk
0:00:01.2]} 64. Ke2 {[%clk 0:00:04.8]} 1-0

[Event "Late-Titled-Tuesday-Blitz-April-23-2024"]
[Site "Chess.com"]
[Date "2024.04.23"]
[Round "3"]
[White "jup1978"]
[Black "Giantgoogachess"]
[Result "0-1"]
[WhiteElo "2495"]
[BlackElo "2302"]
[TimeControl "180+1"]
[EndTime "14:30:52 PDT"]
[Termination "Giantgoogachess won by checkmate"]

1. c4 {[%clk 0:03:00.9]} 1... c6 {[%clk 0:02:57]} 2. g3 {[%clk 0:03:00.1]} 2...
d5 {[%clk 0:02:56.6]} 3. Bg2 {[%clk 0:02:59.8]} 3... Nf6 {[%clk 0:02:57.2]} 4.
b3 {[%clk 0:02:59.6]} 4... Bf5 {[%clk 0:02:57.4]} 5. Nf3 {[%clk 0:02:59.2]} 5...
e6 {[%clk 0:02:58.1]} 6. O-O {[%clk 0:02:59.1]} 6... Nbd7 {[%clk 0:02:58.8]} 7.
Bb2 {[%clk 0:02:59.5]} 7... Bd6 {[%clk 0:02:59.4]} 8. Nh4 {[%clk 0:02:59.8]}
8... Be4 {[%clk 0:02:59]} 9. f3 {[%clk 0:02:59]} 9... Bxb1 {[%clk 0:02:57]} 10.
Rxb1 {[%clk 0:02:56.2]} 10... g5 {[%clk 0:02:57.6]} 11. g4 {[%clk 0:02:43.8]}
11... gxh4 {[%clk 0:02:47]} 12. g5 {[%clk 0:02:43.4]} 12... Rg8 {[%clk
0:02:46.6]} 13. f4 {[%clk 0:02:36]} 13... Ne4 {[%clk 0:02:44.8]} 14. d3 {[%clk
0:02:34.1]} 14... Bc5+ {[%clk 0:02:41.9]} 15. Kh1 {[%clk 0:02:32.3]} 15... Nf2+
{[%clk 0:02:39]} 16. Rxf2 {[%clk 0:02:32.1]} 16... Bxf2 {[%clk 0:02:39.9]} 17.
cxd5 {[%clk 0:02:28.1]} 17... cxd5 {[%clk 0:02:39.2]} 18. e4 {[%clk 0:02:26]}
18... Nb6 {[%clk 0:02:31]} 19. Qh5 {[%clk 0:02:21.9]} 19... Qd7 {[%clk
0:02:25.1]} 20. Bf6 {[%clk 0:02:18.3]} 20... Bc5 {[%clk 0:02:10]} 21. Qxh7
{[%clk 0:02:17.3]} 21... Rf8 {[%clk 0:02:10.6]} 22. Qxh4 {[%clk 0:02:01.5]}
22... Be7 {[%clk 0:02:08.5]} 23. Be5 {[%clk 0:01:54.4]} 23... Bd6 {[%clk
0:02:06.2]} 24. Bf6 {[%clk 0:01:54.2]} 24... Be7 {[%clk 0:02:01.9]} 25. Be5
{[%clk 0:01:53.7]} 25... Rc8 {[%clk 0:02:02.4]} 26. Qh5 {[%clk 0:01:46.8]} 26...
Ba3 {[%clk 0:01:30]} 27. f5 {[%clk 0:01:34]} 27... exf5 {[%clk 0:01:19.1]} 28.
exf5 {[%clk 0:01:25.3]} 28... Rc1+ {[%clk 0:01:18]} 29. Rxc1 {[%clk 0:01:22.9]}
29... Bxc1 {[%clk 0:01:18.9]} 30. Bh3 {[%clk 0:01:15.8]} 30... Qe7 {[%clk
0:01:12.9]} 31. Bg3 {[%clk 0:01:07.4]} 31... Qxg5 {[%clk 0:01:10.7]} 32. Qe2+
{[%clk 0:01:02.8]} 32... Qe3 {[%clk 0:01:10.8]} 33. Qc2 {[%clk 0:00:59.4]} 33...
Rh8 {[%clk 0:00:46.8]} 34. Qg2 {[%clk 0:00:26.6]} 34... Qxd3 {[%clk 0:00:37.1]}
35. Bg4 {[%clk 0:00:21.4]} 35... Rg8 {[%clk 0:00:22.7]} 36. Be2 {[%clk
0:00:19.8]} 36... Qe4 {[%clk 0:00:17.5]} 37. Bf3 {[%clk 0:00:18.3]} 37... Qxf5
{[%clk 0:00:08.5]} 38. Qe2+ {[%clk 0:00:14.6]} 38... Qe6 {[%clk 0:00:08.5]} 39.
Qd1 {[%clk 0:00:13.1]} 39... Bh6 {[%clk 0:00:05.7]} 40. Bg2 {[%clk 0:00:12.8]}
40... Bf8 {[%clk 0:00:05.7]} 41. Qd4 {[%clk 0:00:10.8]} 41... Bd6 {[%clk
0:00:05.4]} 42. Bf2 {[%clk 0:00:08.5]} 42... Rg6 {[%clk 0:00:03.4]} 43. Qh8+
{[%clk 0:00:06.9]} 43... Kd7 {[%clk 0:00:03.1]} 44. Bh3 {[%clk 0:00:05.9]} 44...
f5 {[%clk 0:00:03.8]} 45. Qh7+ {[%clk 0:00:05.4]} 45... Kc6 {[%clk 0:00:04.5]}
46. Bg2 {[%clk 0:00:02.5]} 46... Rh6 {[%clk 0:00:04.4]} 47. Qg7 {[%clk
0:00:01.7]} 47... Rxh2+ {[%clk 0:00:04.4]} 48. Kg1 {[%clk 0:00:02.3]} 48...
Rxg2+ {[%clk 0:00:04.8]} 49. Kxg2 {[%clk 0:00:02.9]} 49... Qe4+ {[%clk
0:00:05.3]} 50. Kf1 {[%clk 0:00:02.2]} 50... Qd3+ {[%clk 0:00:04.8]} 51. Kg2
{[%clk 0:00:01.8]} 51... Qe4+ {[%clk 0:00:05]} 52. Kf1 {[%clk 0:00:01.6]} 52...
Qg4 {[%clk 0:00:05.4]} 53. Qc3+ {[%clk 0:00:01.2]} 53... Kd7 {[%clk 0:00:04.7]}
54. Qf6 {[%clk 0:00:02.1]} 54... Nc8 {[%clk 0:00:03.4]} 55. Qf7+ {[%clk
0:00:03]} 55... Ne7 {[%clk 0:00:03.9]} 56. Qf6 {[%clk 0:00:02.5]} 56... a6
{[%clk 0:00:04.2]} 57. Qd4 {[%clk 0:00:02.7]} 57... Qxd4 {[%clk 0:00:04]} 58.
Bxd4 {[%clk 0:00:03.6]} 58... Nc6 {[%clk 0:00:04.6]} 59. Bf2 {[%clk 0:00:04.3]}
59... f4 {[%clk 0:00:05.3]} 60. Ke2 {[%clk 0:00:05.2]} 60... Ke6 {[%clk
0:00:06]} 61. Kf3 {[%clk 0:00:06.1]} 61... Kf5 {[%clk 0:00:06.8]} 62. Bb6 {[%clk
0:00:06.1]} 62... Ne5+ {[%clk 0:00:07.4]} 63. Ke2 {[%clk 0:00:05.9]} 63... Ke4
{[%clk 0:00:07.8]} 64. Kf1 {[%clk 0:00:06.8]} 64... f3 {[%clk 0:00:08.5]} 65.
Bf2 {[%clk 0:00:07.2]} 65... Ng4 {[%clk 0:00:09.4]} 66. a4 {[%clk 0:00:07.6]}
66... Nxf2 {[%clk 0:00:09.6]} 67. Kxf2 {[%clk 0:00:08.4]} 67... Bc5+ {[%clk
0:00:10.1]} 68. Kf1 {[%clk 0:00:09.3]} 68... Kd3 {[%clk 0:00:10.1]} 69. a5
{[%clk 0:00:10.2]} 69... Kc2 {[%clk 0:00:10.3]} 70. b4 {[%clk 0:00:11.1]} 70...
Bxb4 {[%clk 0:00:10.6]} 71. Kf2 {[%clk 0:00:10.7]} 71... Bxa5 {[%clk 0:00:11.3]}
72. Kf1 {[%clk 0:00:11.6]} 72... Bc7 {[%clk 0:00:11.6]} 73. Kf2 {[%clk
0:00:12.5]} 73... a5 {[%clk 0:00:11.2]} 74. Kf1 {[%clk 0:00:13.4]} 74... a4
{[%clk 0:00:12.1]} 75. Kf2 {[%clk 0:00:14.3]} 75... a3 {[%clk 0:00:13]} 76. Ke3
{[%clk 0:00:15.2]} 76... a2 {[%clk 0:00:13.8]} 77. Kd4 {[%clk 0:00:16.1]} 77...
a1=Q+ {[%clk 0:00:14]} 78. Ke3 {[%clk 0:00:17]} 78... Qe5+ {[%clk 0:00:14.2]}
79. Kf2 {[%clk 0:00:16.9]} 79... Qe2+ {[%clk 0:00:14.4]} 80. Kg1 {[%clk
0:00:17.1]} 80... Qg2# {[%clk 0:00:14.9]} 0-1

[Event "Late-Titled-Tuesday-Blitz-April-23-2024"]
[Site "Chess.com"]
[Date "2024.04.23"]
[Round "3"]
[White "PedroGil25"]
[Black "nindjaxx8"]
[Result "1/2-1/2"]
[WhiteElo "2494"]
[BlackElo "2656"]
[TimeControl "180+1"]
[EndTime "14:30:56 PDT"]
[Termination "Game drawn by repetition"]

1. c4 {[%clk 0:03:00.9]} 1... e6 {[%clk 0:02:59.1]} 2. Nf3 {[%clk 0:03:01.4]}
2... d5 {[%clk 0:02:58.6]} 3. g3 {[%clk 0:03:02.3]} 3... Nf6 {[%clk 0:02:58.3]}
4. Bg2 {[%clk 0:03:02.3]} 4... Be7 {[%clk 0:02:58.6]} 5. O-O {[%clk 0:03:00.3]}
5... O-O {[%clk 0:02:59]} 6. b3 {[%clk 0:02:59.9]} 6... b6 {[%clk 0:02:57.8]} 7.
Bb2 {[%clk 0:02:59]} 7... Bb7 {[%clk 0:02:58.3]} 8. d4 {[%clk 0:02:59]} 8...
dxc4 {[%clk 0:02:58.4]} 9. bxc4 {[%clk 0:02:59.9]} 9... Nbd7 {[%clk 0:02:58.8]}
10. Nc3 {[%clk 0:02:59.3]} 10... c5 {[%clk 0:02:58.4]} 11. d5 {[%clk 0:02:59.4]}
11... exd5 {[%clk 0:02:57.7]} 12. cxd5 {[%clk 0:03:00.3]} 12... Bd6 {[%clk
0:02:55.4]} 13. e4 {[%clk 0:02:59.1]} 13... Re8 {[%clk 0:02:55]} 14. Re1 {[%clk
0:02:58.3]} 14... Ne5 {[%clk 0:02:54.8]} 15. Nb5 {[%clk 0:02:56.7]} 15... Nxf3+
{[%clk 0:02:48.9]} 16. Qxf3 {[%clk 0:02:57.6]} 16... Be5 {[%clk 0:02:47.9]} 17.
Bxe5 {[%clk 0:02:53.1]} 17... Rxe5 {[%clk 0:02:48.8]} 18. Qf4 {[%clk 0:02:47.2]}
18... Re7 {[%clk 0:02:42.6]} 19. Rad1 {[%clk 0:02:31]} 19... Ne8 {[%clk
0:01:51.3]} 20. e5 {[%clk 0:02:19.3]} 20... Rd7 {[%clk 0:01:35.8]} 21. e6 {[%clk
0:01:42.6]} 21... Re7 {[%clk 0:01:03.4]} 22. d6 {[%clk 0:01:35.1]} 22... Rxe6
{[%clk 0:00:41.2]} 23. Bxb7 {[%clk 0:01:30.5]} 23... Rb8 {[%clk 0:00:40.7]} 24.
Rxe6 {[%clk 0:01:28.7]} 24... fxe6 {[%clk 0:00:41.6]} 25. Bf3 {[%clk 0:01:16.1]}
25... Qd7 {[%clk 0:00:39.8]} 26. Nc7 {[%clk 0:01:12.9]} 26... Nf6 {[%clk
0:00:36.7]} 27. Qe5 {[%clk 0:01:08.6]} 27... Kf7 {[%clk 0:00:32.5]} 28. Re1
{[%clk 0:01:07.5]} 28... Rd8 {[%clk 0:00:30]} 29. Qxe6+ {[%clk 0:00:49.4]} 29...
Qxe6 {[%clk 0:00:30]} 30. Rxe6 {[%clk 0:00:46]} 30... c4 {[%clk 0:00:30.1]} 31.
Re7+ {[%clk 0:00:35.2]} 31... Kg6 {[%clk 0:00:29.8]} 32. Nb5 {[%clk 0:00:35.7]}
32... a6 {[%clk 0:00:26.7]} 33. Nc3 {[%clk 0:00:34.3]} 33... Rxd6 {[%clk
0:00:25.9]} 34. Rc7 {[%clk 0:00:29.9]} 34... b5 {[%clk 0:00:25.6]} 35. Rc6
{[%clk 0:00:28.1]} 35... Rxc6 {[%clk 0:00:25.4]} 36. Bxc6 {[%clk 0:00:28.1]}
36... b4 {[%clk 0:00:22.8]} 37. Ne2 {[%clk 0:00:28.3]} 37... Kf5 {[%clk
0:00:19.1]} 38. f4 {[%clk 0:00:24.4]} 38... Ke6 {[%clk 0:00:18.6]} 39. Kf2
{[%clk 0:00:24]} 39... Kd6 {[%clk 0:00:19.2]} 40. Bf3 {[%clk 0:00:23.7]} 40...
Kc5 {[%clk 0:00:19.7]} 41. Ke3 {[%clk 0:00:23.8]} 41... b3 {[%clk 0:00:20.3]}
42. axb3 {[%clk 0:00:23.6]} 42... cxb3 {[%clk 0:00:20.6]} 43. Kd2 {[%clk
0:00:23.2]} 43... Kb4 {[%clk 0:00:21.1]} 44. Kc1 {[%clk 0:00:20]} 44... a5
{[%clk 0:00:20.4]} 45. Kb1 {[%clk 0:00:18.5]} 45... a4 {[%clk 0:00:20.7]} 46.
Nc1 {[%clk 0:00:16.1]} 46... a3 {[%clk 0:00:20]} 47. g4 {[%clk 0:00:09.9]} 47...
Kc3 {[%clk 0:00:20]} 48. g5 {[%clk 0:00:06.6]} 48... Nd7 {[%clk 0:00:19.5]} 49.
f5 {[%clk 0:00:07.1]} 49... Ne5 {[%clk 0:00:18.9]} 50. Be2 {[%clk 0:00:07.6]}
50... a2+ {[%clk 0:00:12.2]} 51. Nxa2+ {[%clk 0:00:06.4]} 51... bxa2+ {[%clk
0:00:13.1]} 52. Kxa2 {[%clk 0:00:07.2]} 52... Kd2 {[%clk 0:00:13.6]} 53. Bf1
{[%clk 0:00:05.7]} 53... Ke3 {[%clk 0:00:13.9]} 54. f6 {[%clk 0:00:05.7]} 54...
gxf6 {[%clk 0:00:14.4]} 55. gxf6 {[%clk 0:00:06.6]} 55... Kf4 {[%clk 0:00:10]}
56. Bc4 {[%clk 0:00:07]} 56... Kg5 {[%clk 0:00:07.8]} 57. f7 {[%clk 0:00:07]}
57... Nd7 {[%clk 0:00:08.2]} 58. Kb3 {[%clk 0:00:06.5]} 58... Kf6 {[%clk
0:00:08.9]} 59. Kc3 {[%clk 0:00:06.8]} 59... Kg7 {[%clk 0:00:09.6]} 60. Kd4
{[%clk 0:00:07.4]} 60... Nf8 {[%clk 0:00:06.6]} 61. Ke4 {[%clk 0:00:08]} 61...
Kf6 {[%clk 0:00:06.9]} 62. Kf4 {[%clk 0:00:08.2]} 62... h6 {[%clk 0:00:07.5]}
63. Kg4 {[%clk 0:00:08.4]} 63... Kg6 {[%clk 0:00:08.1]} 64. h3 {[%clk
0:00:08.6]} 64... Nd7 {[%clk 0:00:06.9]} 65. Bd3+ {[%clk 0:00:09]} 65... Kg7
{[%clk 0:00:06.2]} 66. Bc4 {[%clk 0:00:04.7]} 66... Ne5+ {[%clk 0:00:06.5]} 67.
Kh5 {[%clk 0:00:05.3]} 67... Nxc4 {[%clk 0:00:07.1]} 68. f8=Q+ {[%clk 0:00:06]}
68... Kxf8 {[%clk 0:00:07.4]} 69. Kxh6 {[%clk 0:00:06.9]} 69... Kg8 {[%clk
0:00:08.3]} 70. h4 {[%clk 0:00:06.9]} 70... Nd6 {[%clk 0:00:09.2]} 71. h5 {[%clk
0:00:07.8]} 71... Nf7+ {[%clk 0:00:10.1]} 72. Kg6 {[%clk 0:00:08.4]} 72... Nd8
{[%clk 0:00:11]} 73. h6 {[%clk 0:00:09.2]} 73... Nc6 {[%clk 0:00:11.9]} 74. h7+
{[%clk 0:00:10]} 74... Kh8 {[%clk 0:00:12.8]} 75. Kh6 {[%clk 0:00:10.6]} 75...
Nb4 {[%clk 0:00:13.5]} 76. Kg6 {[%clk 0:00:11.5]} 76... Na2 {[%clk 0:00:13.3]}
77. Kh6 {[%clk 0:00:12.4]} 77... Nc3 {[%clk 0:00:14.2]} 78. Kg6 {[%clk
0:00:13.3]} 78... Ne4 {[%clk 0:00:15.1]} 79. Kh6 {[%clk 0:00:14.2]} 79... Nc3
{[%clk 0:00:16]} 80. Kg6 {[%clk 0:00:15]} 80... Nb1 {[%clk 0:00:16.8]} 81. Kh6
{[%clk 0:00:15.9]} 81... Nd2 {[%clk 0:00:17.7]} 82. Kg6 {[%clk 0:00:16.7]} 82...
Nf1 {[%clk 0:00:18.6]} 83. Kh6 {[%clk 0:00:17.5]} 83... Ne3 {[%clk 0:00:19.5]}
84. Kg6 {[%clk 0:00:18.3]} 84... Nd1 {[%clk 0:00:20.4]} 85. Kh6 {[%clk
0:00:19.1]} 85... Nc3 {[%clk 0:00:21.3]} 1/2-1/2